bitfinex/quotes_SOLUSD_20241029
["timestamp","ask_amount","ask_price","bid_price","bid_amount"]
[1730165245381,5.86877453,177.71,177.69,22.75229885]
[1730165246957,5.86877453,177.71,177.7,17.12479885]
[1730165247159,12.84965414,177.72,177.7,17.12479885]
[1730165247361,28.0839,177.77,177.69,19.6969]
[1730165247362,22.4587,177.77,177.71,17.12479885]
[1730165247582,22.4587,177.77,177.74,17.12479885]
[1730165247884,22.4587,177.77,177.69,19.6969]
[1730165247885,22.4587,177.77,177.73,17.12479885]
[1730165248202,28.0839,177.77,177.73,17.12479885]
[1730165248493,28.0839,177.77,177.72,17.12479885]
[1730165248787,28.0839,177.77,177.73,17.12479885]
[1730165249996,22.4587,177.77,177.73,36.81719885]
[1730165250494,5.86630964,177.77,177.76,17.12479885]
[1730165250693,20.0,177.8,177.76,17.12479885]
[1730165250901,20.0,177.8,177.77,17.12479885]
[1730165251083,20.0,177.8,177.77,22.74999885]
[1730165251669,20.0,177.8,177.77,5.6252]
[1730165252093,20.0,177.8,177.76,17.12479885]
[1730165252494,20.0,177.8,177.77,17.12479885]
[1730165252884,20.0,177.8,177.76,17.12479885]
[1730165253366,20.0,177.8,177.77,17.12479885]
[1730165253572,37.12479885,177.8,177.76,19.6892]
[1730165253773,17.12479885,177.78,177.73,14.0662]
[1730165254696,20.0,177.77,177.73,14.0662]
[1730165254991,20.0,177.77,177.73,19.6927]
[1730165255717,75.86594337,177.79,177.76,17.12479885]
[1730165255873,75.86594337,177.79,177.77,17.12479885]
[1730165256267,5.86594337,177.79,177.78,17.12479885]
[1730165256493,22.3923,177.81,177.77,17.12479885]
[1730165256691,5.86885006,177.8,177.76,17.12479885]
[1730165256872,5.86885006,177.8,177.77,17.12479885]
[1730165257083,5.86885006,177.8,177.76,17.12479885]
[1730165257376,5.86885006,177.8,177.76,22.75029885]
[1730165257592,98.61804891,177.8,177.74,22.75079885]
[1730165257900,98.61804891,177.8,177.75,17.12479885]
[1730165260303,81.49325006,177.8,177.75,17.12479885]
[1730165260722,5.86885006,177.8,177.76,17.12479885]
[1730165261506,5.86885006,177.8,177.77,17.12479885]
[1730165262109,12.77249495,177.83,177.79,17.12479885]
[1730165262486,12.77249495,177.83,177.75,19.6904]
[1730165262487,18.63934175,177.83,177.78,17.12479885]
[1730165263814,17.12479885,177.82,177.76,17.12479885]
[1730165264678,17.12479885,177.82,177.77,5.6252]
[1730165265109,70.0,177.81,177.76,17.12479885]
[1730165265284,70.0,177.81,177.74,14.0654]
[1730165265285,17.12479885,177.8,177.75,5.6257]
[1730165265483,17.12479885,177.8,177.74,31.19019885]
[1730165265484,17.12479885,177.8,177.74,36.81629885]
[1730165266285,87.12479885,177.81,177.75,17.12479885]
[1730165267211,75.6242,177.81,177.76,17.12479885]
[1730165267588,92.74899885,177.81,177.75,22.75049885]
[1730165268311,75.6242,177.81,177.76,17.12479885]
[1730165268983,17.12479885,177.77,177.71,19.6949]
[1730165269187,17.12479885,177.76,177.71,19.6949]
[1730165269525,70.0,177.79,177.71,19.6949]
[1730165269526,17.12479885,177.77,177.71,19.6949]
[1730165270011,17.12479885,177.77,177.72,17.12479885]
[1730165270205,20.0,177.77,177.72,36.81839885]
[1730165270593,5.625,177.78,177.73,17.12479885]
[1730165271205,21.3191,177.8,177.75,17.12479885]
[1730165271409,21.3191,177.8,177.76,17.12479885]
[1730165271796,26.9433,177.8,177.76,17.12479885]
[1730165272507,26.9433,177.8,177.75,17.12479885]
[1730165272688,32.80726471,177.8,177.75,17.12479885]
[1730165273090,49.93206356,177.8,177.74,22.75059885]
[1730165273812,17.12479885,177.77,177.71,22.75159885]
[1730165275736,22.75019885,177.77,177.71,22.75159885]
[1730165276104,20.0,177.77,177.74,17.12479885]
[1730165276306,20.0,177.77,177.73,17.12479885]
[1730165276499,20.0,177.77,177.72,17.12479885]
[1730165277217,25.6253,177.77,177.72,17.12479885]
[1730165277809,42.75009885,177.77,177.72,17.12479885]
[1730165278724,25.6253,177.77,177.72,17.12479885]
[1730165280613,42.75009885,177.77,177.71,17.12479885]
[1730165282407,17.12479885,177.76,177.7,17.12479885]
[1730165282724,87.12479885,177.74,177.68,17.12479885]
[1730165283026,20.0,177.75,177.71,17.12479885]
[1730165283705,20.0,177.75,177.71,22.75179885]
[1730165284103,81.48904033,177.76,177.71,22.75179885]
[1730165284298,81.48904033,177.76,177.72,17.12479885]
[1730165284827,5.86334033,177.76,177.74,17.12479885]
[1730165285026,5.6248,177.79,177.75,17.12479885]
[1730165285512,22.74959885,177.79,177.73,17.12479885]
[1730165285723,22.74959885,177.79,177.73,22.75119885]
[1730165286629,17.12479885,177.78,177.73,5.6264]
[1730165286926,5.6251,177.78,177.73,17.12479885]
[1730165287312,5.6251,177.78,177.75,17.12479885]
[1730165287509,5.6251,177.78,177.74,17.12479885]
[1730165288399,25.6246,177.79,177.74,17.12479885]
[1730165288826,42.74939885,177.79,177.73,17.12479885]
[1730165289702,25.6246,177.79,177.74,17.12479885]
[1730165290008,25.6246,177.79,177.76,17.12479885]
[1730165290009,5.6246,177.79,177.76,17.12479885]
[1730165290211,26.9434,177.8,177.76,17.12479885]
[1730165290596,96.9434,177.8,177.76,17.12479885]
[1730165290799,96.9434,177.8,177.75,17.12479885]
[1730165291932,87.12479885,177.78,177.72,17.12479885]
[1730165292127,17.12479885,177.77,177.71,22.75159885]
[1730165292428,17.12479885,177.75,177.7,3.58640549]
[1730165292729,87.12479885,177.76,177.7,20.71120434]
[1730165292927,87.12479885,177.76,177.7,17.12479885]
[1730165293307,5.6258,177.75,177.7,17.12479885]
[1730165293610,5.6258,177.75,177.71,17.12479885]
[1730165293815,5.6258,177.75,177.7,17.12479885]
[1730165294829,22.75059885,177.75,177.7,17.12479885]
[1730165295338,17.12479885,177.73,177.67,17.12479885]
[1730165295509,17.12479885,177.73,177.68,3.58806686]
[1730165295716,17.12479885,177.73,177.67,20.71286571]
[1730165296441,17.12479885,177.72,177.67,3.58806686]
[1730165296812,17.12479885,177.73,177.68,17.12479885]
[1730165297349,5.6268,177.72,177.68,17.12479885]
[1730165297630,92.75159885,177.72,177.67,3.58806686]
[1730165298043,75.6268,177.72,177.67,20.71286571]
[1730165299331,92.75159885,177.72,177.68,3.58806686]
[1730165299508,92.75159885,177.72,177.66,36.82529885]
[1730165299706,92.75159885,177.72,177.67,3.59010604]
[1730165300022,75.6268,177.72,177.68,3.59010604]
[1730165300238,5.6268,177.72,177.68,20.71490489]
[1730165300711,5.6268,177.72,177.69,3.59010604]
[1730165301311,5.6268,177.72,177.68,17.12479885]
[1730165301527,5.6268,177.72,177.69,3.59168515]
[1730165301719,5.6268,177.72,177.68,17.12479885]
[1730165301928,5.6268,177.72,177.69,3.59160935]
[1730165302136,5.6268,177.72,177.68,17.12479885]
[1730165302330,5.6268,177.72,177.69,3.59219682]
[1730165302533,5.6268,177.72,177.68,17.12479885]
[1730165302732,5.6268,177.72,177.69,3.59242065]
[1730165302927,5.6268,177.72,177.68,17.12479885]
[1730165303139,21.1954,177.73,177.69,20.71727467]
[1730165303434,11.48740097,177.74,177.7,20.71727467]
[1730165303622,11.48740097,177.74,177.71,3.59247582]
[1730165303828,5.86100097,177.74,177.71,20.71727467]
[1730165304039,5.6258,177.76,177.72,17.12479885]
[1730165304427,27.70940667,177.77,177.71,3.59201575]
[1730165304738,27.70940667,177.77,177.73,17.12479885]
[1730165305327,21.8494,177.77,177.73,17.12479885]
[1730165305527,27.4747,177.77,177.73,17.12479885]
[1730165307444,108.85339885,177.81,177.76,17.12479885]
[1730165307640,70.0,177.79,177.75,17.12479885]
[1730165307841,28.61075315,177.8,177.75,17.12479885]
[1730165308350,12.77514031,177.83,177.69,19.6971]
[1730165308351,12.77514031,177.83,177.79,17.12479885]
[1730165309517,29.89993916,177.83,177.78,22.74949885]
[1730165310844,35.52323916,177.83,177.78,5.6247]
[1730165311144,5.6211,177.9,177.82,17.12479885]
[1730165311351,22.74589885,177.9,177.84,17.12479885]
[1730165312234,5.6211,177.9,177.85,17.12479885]
[1730165312638,22.74589885,177.9,177.84,17.12479885]
[1730165312827,5.6211,177.9,177.85,17.12479885]
[1730165313830,5.6211,177.9,177.86,17.12479885]
[1730165314648,5.85806742,177.91,177.88,17.12479885]
[1730165314876,98.60366627,177.91,177.85,17.12479885]
[1730165315147,17.12479885,177.9,177.84,36.80509885]
[1730165315529,87.12479885,177.89,177.84,31.18229885]
[1730165315837,70.0,177.89,177.84,31.18229885]
[1730165316025,17.12479885,177.88,177.82,17.12479885]
[1730165316234,17.12479885,177.87,177.82,22.74839885]
[1730165317239,22.74649885,177.88,177.82,22.74839885]
[1730165317438,70.0,177.86,177.81,17.12479885]
[1730165318626,5.6224,177.86,177.82,17.12479885]
[1730165318832,75.6224,177.86,177.82,17.12479885]
[1730165319147,92.74719885,177.86,177.8,36.80879885]
[1730165320822,92.74719885,177.86,177.79,17.12479885]
[1730165320823,17.12479885,177.85,177.79,17.12479885]
[1730165321444,17.12479885,177.84,177.79,21.02738153]
[1730165321646,17.12479885,177.84,177.76,19.6887]
[1730165321647,87.12479885,177.84,177.78,17.12479885]
[1730165321843,75.6231,177.84,177.79,17.12479885]
[1730165322422,92.74789885,177.84,177.78,22.74949885]
[1730165323422,92.74789885,177.84,177.78,26.65241854]
[1730165323656,92.74789885,177.84,177.78,22.74949885]
[1730165323951,92.74789885,177.84,177.78,26.65241854]
[1730165324156,92.74789885,177.84,177.78,22.74949885]
[1730165324333,92.74789885,177.84,177.78,26.65241854]
[1730165324542,92.74789885,177.84,177.78,22.74949885]
[1730165324744,92.74789885,177.84,177.78,26.65241854]
[1730165324945,92.74789885,177.84,177.78,22.74949885]
[1730165325159,5.6231,177.84,177.79,17.12479885]
[1730165325665,17.12479885,177.83,177.78,26.65241854]
[1730165325853,17.12479885,177.83,177.78,22.74949885]
[1730165326038,17.12479885,177.83,177.78,26.65332217]
[1730165326243,92.74789885,177.84,177.79,17.12479885]
[1730165326745,92.74789885,177.84,177.78,22.74949885]
[1730165326946,17.12479885,177.84,177.78,22.74949885]
[1730165327147,45.09924042,177.85,177.79,17.12479885]
[1730165327551,50.72214042,177.85,177.79,17.12479885]
[1730165327765,17.12479885,177.84,177.78,36.81179885]
[1730165327971,50.72214042,177.85,177.79,17.12479885]
[1730165328174,33.59734157,177.85,177.8,17.12479885]
[1730165328475,33.59734157,177.85,177.8,10.94389698]
[1730165328760,27.97444157,177.85,177.8,10.94389698]
[1730165328971,22.1141,177.85,177.81,10.94389698]
[1730165329165,38.68069698,177.85,177.79,30.62969698]
[1730165329358,22.1141,177.85,177.8,10.94389698]
[1730165329548,22.1141,177.85,177.81,10.94389698]
[1730165329751,22.1141,177.85,177.8,10.94389698]
[1730165330477,33.05799698,177.85,177.74,47.72086832]
[1730165330673,38.68079698,177.85,177.79,10.94389698]
[1730165331253,27.7369,177.85,177.8,10.94389698]
[1730165332875,38.68079698,177.85,177.79,10.94389698]
[1730165333173,10.94389698,177.82,177.76,9.52725147]
[1730165333375,10.94389698,177.82,177.77,3.90175147]
[1730165333678,10.94389698,177.82,177.77,14.84564845]
[1730165334360,10.94389698,177.82,177.77,20.47064845]
[1730165335275,16.56739698,177.83,177.77,20.47064845]
[1730165335574,16.56739698,177.83,177.77,20.47152191]
[1730165335947,16.56739698,177.83,177.77,20.47231015]
[1730165337570,10.94389698,177.81,177.76,19.6894]
[1730165337881,10.94389698,177.81,177.76,23.59345065]
[1730165339151,10.94389698,177.81,177.76,34.53734763]
[1730165339352,86.56769698,177.82,177.76,30.63329698]
[1730165339572,86.56769698,177.82,177.77,5.6252]
[1730165339885,86.56769698,177.82,177.77,9.52905868]
[1730165341480,75.6238,177.82,177.77,20.47295566]
[1730165341686,5.6233,177.83,177.78,16.56859698]
[1730165341976,10.94389698,177.81,177.76,19.6891]
[1730165342156,10.94389698,177.8,177.76,19.6891]
[1730165342672,10.94389698,177.81,177.76,19.6891]
[1730165343055,10.94389698,177.79,177.72,19.6934]
[1730165343290,10.94389698,177.76,177.73,3.90617653]
[1730165343459,10.94389698,177.76,177.74,3.90617653]
[1730165343770,10.94389698,177.76,177.73,3.90617653]
[1730165343980,10.94389698,177.76,177.72,14.0666]
[1730165344279,10.94389698,177.76,177.73,3.90740958]
[1730165344452,10.94389698,177.76,177.72,14.0666]
[1730165344651,10.94389698,177.76,177.73,3.90764594]
[1730165344871,10.94389698,177.76,177.74,3.9073177]
[1730165345089,10.94389698,177.76,177.73,3.9073177]
[1730165345268,10.94389698,177.76,177.72,19.6933]
[1730165345471,80.94389698,177.75,177.73,3.90751268]
[1730165345666,80.94389698,177.75,177.7,3.90751268]
[1730165345972,80.94389698,177.75,177.69,16.57159698]
[1730165345973,80.94389698,177.75,177.71,3.90751268]
[1730165346187,80.94389698,177.75,177.69,16.57159698]
[1730165346359,80.94389698,177.75,177.7,3.90904387]
[1730165346561,10.94389698,177.72,177.71,3.90904387]
[1730165346766,10.94389698,177.72,177.69,3.90904387]
[1730165347161,80.94389698,177.73,177.68,3.90904387]
[1730165347364,80.94389698,177.73,177.69,3.90904387]
[1730165347561,80.94389698,177.73,177.7,3.90904387]
[1730165347776,80.94389698,177.73,177.68,3.90904387]
[1730165347979,70.0,177.73,177.69,3.90904387]
[1730165348755,75.6265,177.73,177.69,3.86544175]
[1730165349263,75.6256,177.76,177.71,10.94389698]
[1730165349673,75.6256,177.76,177.71,14.80933873]
[1730165349674,16.56949698,177.76,177.71,14.80933873]
[1730165349893,5.6256,177.76,177.71,10.94389698]
[1730165350063,91.8275,177.78,177.68,19.6982]
[1730165350064,21.8275,177.78,177.74,10.94389698]
[1730165350681,21.8275,177.78,177.74,16.56999698]
[1730165350886,5.6246,177.79,177.74,30.63539698]
[1730165351484,10.94389698,177.81,177.75,10.94389698]
[1730165351682,92.60379698,177.82,177.76,10.94389698]
[1730165352101,10.94389698,177.81,177.76,10.94389698]
[1730165352389,80.94389698,177.77,177.71,5.6268]
[1730165352563,92.74286375,177.77,177.72,9.49075141]
[1730165352874,5.6253,177.77,177.72,26.60831516]
[1730165353067,5.6253,177.77,177.72,22.74436375]
[1730165353264,17.11756375,177.78,177.72,40.67531516]
[1730165353464,70.0,177.79,177.74,17.11756375]
[1730165353988,87.11756375,177.79,177.74,3.86395141]
[1730165356390,92.74236375,177.79,177.74,3.86395141]
[1730165356572,17.11756375,177.78,177.74,3.86395141]
[1730165356969,17.11756375,177.76,177.73,3.86395141]
[1730165357175,17.11756375,177.76,177.71,3.86465328]
[1730165357379,17.11756375,177.76,177.72,3.86465328]
[1730165357587,87.11756375,177.75,177.69,22.74516375]
[1730165357785,87.11756375,177.75,177.7,3.86536913]
[1730165357975,87.11756375,177.75,177.69,22.74516375]
[1730165358174,17.11756375,177.76,177.7,20.98300321]
[1730165358365,90.0,177.77,177.71,20.98300321]
[1730165358366,107.11756375,177.77,177.71,20.98300321]
[1730165358575,75.6253,177.77,177.72,20.98300321]
[1730165358774,75.6253,177.77,177.73,3.86543946]
[1730165359077,11.48506016,177.79,177.74,17.11756375]
[1730165359266,5.6246,177.79,177.74,17.11756375]
[1730165359895,70.0,177.74,177.67,4.5911326]
[1730165360203,17.11756375,177.72,177.68,3.86704213]
[1730165360493,17.11756375,177.7,177.69,3.86704213]
[1730165360694,22.74496375,177.7,177.69,3.86704213]
[1730165360874,22.74496375,177.7,177.66,3.86704213]
[1730165361079,22.74496375,177.7,177.67,3.86704213]
[1730165361285,22.74496375,177.7,177.68,3.86704213]
[1730165361485,22.74496375,177.7,177.65,5.6289]
[1730165361675,22.74496375,177.7,177.66,3.86874826]
[1730165361874,22.74496375,177.7,177.67,3.86874826]
[1730165362075,22.74496375,177.7,177.65,5.6289]
[1730165362076,22.74496375,177.7,177.68,3.86874826]
[1730165362285,17.11756375,177.71,177.66,20.98631201]
[1730165362494,22.74466375,177.72,177.67,3.86874826]
[1730165362686,17.11756375,177.71,177.66,22.74616375]
[1730165362890,17.11756375,177.71,177.67,3.82523972]
[1730165363104,5.6271,177.72,177.67,3.82523972]
[1730165363277,22.74466375,177.72,177.67,3.82523972]
[1730165363477,22.74466375,177.72,177.68,3.82523972]
[1730165363674,70.0,177.73,177.67,3.82523972]
[1730165363675,22.74466375,177.71,177.67,3.82523972]
[1730165363872,22.74466375,177.71,177.68,3.82523972]
[1730165364078,22.74466375,177.71,177.67,3.82523972]
[1730165364291,17.11756375,177.68,177.67,3.82523972]
[1730165364480,17.11756375,177.68,177.61,5.6301]
[1730165364481,70.0,177.67,177.65,3.82523972]
[1730165364792,17.11756375,177.66,177.63,3.82523972]
[1730165365092,17.11756375,177.67,177.64,3.82523972]
[1730165365289,17.11756375,177.67,177.63,3.82523972]
[1730165365472,92.069,177.69,177.64,3.82523972]
[1730165365473,17.11756375,177.65,177.64,3.82523972]
[1730165365675,17.11756375,177.67,177.63,3.82523972]
[1730165365974,17.11756375,177.67,177.64,3.82523972]
[1730165366174,17.11756375,177.67,177.63,3.82523972]
[1730165366873,37.11756375,177.66,177.63,3.82523972]
[1730165367076,20.0,177.66,177.63,3.82523972]
[1730165367698,20.0,177.66,177.62,0.4727879]
[1730165367699,107.11756375,177.64,177.62,4.29802762]
[1730165368003,17.11756375,177.63,177.62,0.4727879]
[1730165368905,22.74716375,177.63,177.62,0.4727879]
[1730165369572,5.6296,177.63,177.62,0.4727879]
[1730165369998,22.74716375,177.63,177.62,0.4727879]
[1730165370378,17.11756375,177.63,177.62,0.4727879]
[1730165370697,17.11756375,177.64,177.62,0.4727879]
[1730165371897,22.74686375,177.64,177.62,0.4727879]
[1730165374005,5.6293,177.64,177.62,0.4727879]
[1730165374187,17.11756375,177.67,177.62,23.22005165]
[1730165374393,87.11756375,177.68,177.63,17.11756375]
[1730165374706,87.11756375,177.68,177.62,23.22005165]
[1730165374911,17.11756375,177.67,177.62,23.22005165]
[1730165375112,22.74596375,177.67,177.62,0.4727879]
[1730165375490,17.11756375,177.64,177.62,0.4727879]
[1730165376412,22.74646375,177.66,177.62,0.4727879]
[1730165376584,5.6289,177.66,177.62,0.4727879]
[1730165377708,22.74646375,177.66,177.62,0.4727879]
[1730165379706,17.11756375,177.65,177.62,0.4727879]
[1730165380592,5.6292,177.65,177.62,0.4727879]
[1730165380796,22.74676375,177.65,177.62,0.4727879]
[1730165381209,5.6292,177.65,177.64,4.0]
[1730165381397,22.74676375,177.65,177.64,4.0]
[1730165382814,66.52364775,177.65,177.64,4.0]
[1730165383606,42.74676375,177.65,177.64,4.0]
[1730165384620,36.59975772,177.65,177.64,4.0]
[1730165388904,25.6292,177.65,177.64,4.0]
[1730165389600,5.6292,177.65,177.64,4.0]
[1730165389800,36.59975772,177.65,177.64,4.0]
[1730165391206,30.97055772,177.65,177.64,4.0]
[1730165392323,36.59975772,177.65,177.64,4.0]
[1730165397400,60.37664172,177.65,177.64,4.0]
[1730165397606,66.35333377,177.65,177.64,4.0]
[1730165398434,66.25333377,177.65,177.64,4.0]
[1730165399220,61.25333377,177.65,177.64,4.0]
[1730165402715,61.35333377,177.65,177.64,4.0]
[1730165404842,50.38277605,177.65,177.64,4.0]
[1730165405137,50.28277605,177.65,177.64,4.0]
[1730165405306,61.25333377,177.65,177.64,4.0]
[1730165407632,56.25333377,177.65,177.64,4.0]
[1730165409441,56.35333377,177.65,177.64,4.0]
[1730165410612,56.45333377,177.65,177.64,4.0]
[1730165410918,69.43545843,177.65,177.64,4.0]
[1730165411242,69.53545843,177.65,177.64,4.0]
[1730165412032,58.56490071,177.65,177.64,4.0]
[1730165412241,69.43545843,177.65,177.64,4.0]
[1730165412412,56.45333377,177.65,177.64,4.0]
[1730165412837,69.61174617,177.65,177.64,4.0]
[1730165413620,69.51174617,177.65,177.64,4.0]
[1730165413821,69.61174617,177.65,177.64,4.0]
[1730165414634,56.35333377,177.65,177.64,4.0]
[1730165414946,56.45333377,177.65,177.64,4.0]
[1730165415123,35.28277605,177.65,177.64,4.0]
[1730165415320,46.25333377,177.65,177.64,4.0]
[1730165415635,22.57644977,177.65,177.64,4.0]
[1730165415838,22.67644977,177.65,177.64,4.0]
[1730165416047,36.08380782,177.65,177.64,4.0]
[1730165416340,56.08380782,177.65,177.64,1.1774]
[1730165416524,42.67644977,177.65,177.64,1.1774]
[1730165416718,66.45333377,177.65,177.64,1.1774]
[1730165416919,73.88875854,177.65,177.64,1.1774]
[1730165420343,66.25333377,177.65,177.64,1.1774]
[1730165423252,31.50589205,177.65,177.64,1.1774]
[1730165423542,70.0,177.66,177.64,1.1774]
[1730165423746,75.6289,177.66,177.64,1.1774]
[1730165424538,86.59945772,177.66,177.64,1.1774]
[1730165425248,30.97055772,177.65,177.64,1.1774]
[1730165425547,54.84744172,177.65,177.64,1.1774]
[1730165425883,54.74744172,177.65,177.64,1.1774]
[1730165426749,60.47644172,177.65,177.64,1.1774]
[1730165427044,60.37644172,177.65,177.64,1.1774]
[1730165427240,49.405884,177.65,177.64,1.1774]
[1730165427441,60.47644172,177.65,177.64,1.1774]
[1730165429649,60.37644172,177.65,177.64,1.1774]
[1730165430028,60.47644172,177.65,177.64,1.1774]
[1730165432646,60.57644172,177.65,177.64,1.1774]
[1730165433234,49.605884,177.65,177.64,1.1774]
[1730165433448,60.57644172,177.65,177.64,1.1774]
[1730165433853,60.47644172,177.65,177.64,1.1774]
[1730165434152,49.405884,177.65,177.64,1.1774]
[1730165434339,60.37644172,177.65,177.64,1.1774]
[1730165434541,36.59955772,177.65,177.64,1.1774]
[1730165435043,25.629,177.65,177.64,1.1774]
[1730165435240,36.59955772,177.65,177.64,1.1774]
[1730165435435,36.69955772,177.65,177.64,1.1774]
[1730165436247,60.57644172,177.65,177.64,1.1774]
[1730165436437,126.56624516,177.63,177.62,0.4727879]
[1730165436646,143.16640288,177.63,177.62,0.4727879]
[1730165438962,143.36640288,177.63,177.62,0.4727879]
[1730165439173,165.48940288,177.63,177.62,0.4727879]
[1730165440249,165.38940288,177.63,177.62,0.4727879]
[1730165440453,165.48940288,177.63,177.62,0.4727879]
[1730165441142,165.38940288,177.63,177.62,0.4727879]
[1730165441462,165.48940288,177.63,177.62,0.4727879]
[1730165443261,165.38940288,177.63,177.62,0.4727879]
[1730165443435,165.48940288,177.63,177.62,0.4727879]
[1730165445345,165.28940288,177.63,177.62,0.4727879]
[1730165445546,165.38940288,177.63,177.62,0.4727879]
[1730165445743,112.19584516,177.63,177.62,0.4727879]
[1730165445943,123.26640288,177.63,177.62,0.4727879]
[1730165446149,123.16640288,177.63,177.62,0.4727879]
[1730165447168,143.16640288,177.63,177.62,0.4727879]
[1730165451574,143.26640288,177.63,177.62,0.4727879]
[1730165452076,143.26640288,177.63,177.62,8.79e-05]
[1730165452249,143.36640288,177.63,177.62,8.79e-05]
[1730165453355,143.16640288,177.63,177.62,8.79e-05]
[1730165453561,143.26640288,177.63,177.62,8.79e-05]
[1730165454862,73.26640288,177.63,177.62,8.79e-05]
[1730165455557,143.26640288,177.63,177.62,8.79e-05]
[1730165462184,132.19584516,177.63,177.62,8.79e-05]
[1730165462383,88.41896116,177.63,177.62,8.79e-05]
[1730165464567,82.78936116,177.63,177.62,8.79e-05]
[1730165465065,12.78936116,177.63,177.62,8.79e-05]
[1730165465462,12.78936116,177.63,177.62,10.97064562]
[1730165466370,12.78936116,177.63,177.62,8.79e-05]
[1730165468687,12.78936116,177.63,177.62,10.97064562]
[1730165469391,12.78936116,177.63,177.62,14.76947256]
[1730165471293,12.78936116,177.63,177.62,35.93497256]
[1730165471486,12.78936116,177.63,177.62,32.13614562]
[1730165471797,70.0,177.69,177.62,35.93335932]
[1730165471968,5.6277,177.7,177.66,10.97055772]
[1730165472169,75.6271,177.71,177.67,10.97055772]
[1730165472373,75.6271,177.71,177.66,10.97055772]
[1730165473600,86.59765772,177.71,177.65,10.97055772]
[1730165473899,70.0,177.67,177.62,29.6105879]
[1730165474097,70.0,177.67,177.62,40.58114562]
[1730165474677,16.59925772,177.66,177.62,8.79e-05]
[1730165475195,70.0,177.65,177.62,8.79e-05]
[1730165476004,70.0,177.67,177.64,10.97055772]
[1730165476298,5.6283,177.68,177.65,10.97055772]
[1730165476488,5.6283,177.68,177.64,10.97055772]
[1730165477295,86.59915772,177.67,177.62,8.79e-05]
[1730165477887,70.0,177.65,177.62,8.79e-05]
[1730165479479,75.6292,177.65,177.62,8.79e-05]
[1730165480099,75.6292,177.65,177.62,10.97064562]
[1730165480294,75.6292,177.65,177.63,10.97055772]
[1730165481398,70.0,177.67,177.63,10.97055772]
[1730165481600,70.0,177.67,177.64,10.97055772]
[1730165481601,75.6285,177.67,177.64,10.97055772]
[1730165481985,5.6285,177.67,177.64,10.97055772]
[1730165482181,75.6285,177.67,177.64,10.97055772]
[1730165482381,10.97055772,177.7,177.65,10.97055772]
[1730165482382,70.0,177.7,177.65,10.97055772]
[1730165482593,70.0,177.7,177.62,5.6299879]
[1730165482594,5.6278,177.69,177.66,10.97055772]
[1730165482787,5.6278,177.69,177.64,10.97055772]
[1730165485814,5.6278,177.69,177.65,10.97055772]
[1730165486882,5.6278,177.69,177.62,8.79e-05]
[1730165486883,70.0,177.66,177.62,8.79e-05]
[1730165487500,70.0,177.66,177.62,10.97064562]
[1730165488885,5.6284,177.67,177.64,10.97055772]
[1730165489684,70.0,177.66,177.63,10.97055772]
[1730165490193,5.629,177.65,177.62,10.97064562]
[1730165493089,80.97055772,177.64,177.62,8.79e-05]
[1730165493451,10.97055772,177.63,177.62,8.79e-05]
[1730165493613,30.97055772,177.63,177.62,8.79e-05]
[1730165494396,36.60015772,177.63,177.62,8.79e-05]
[1730165498312,60.37704172,177.63,177.62,8.79e-05]
[1730165502216,71.378684,177.63,177.62,8.79e-05]
[1730165502398,82.34924172,177.63,177.62,8.79e-05]
[1730165505695,82.44924172,177.63,177.62,8.79e-05]
[1730165506820,82.34924172,177.63,177.62,8.79e-05]
[1730165507815,58.57235772,177.63,177.62,8.79e-05]
[1730165508123,36.60015772,177.63,177.62,8.79e-05]
[1730165510624,60.37704172,177.63,177.62,8.79e-05]
[1730165513430,36.60015772,177.63,177.62,8.79e-05]
[1730165516902,25.6296,177.63,177.62,8.79e-05]
[1730165518116,36.60015772,177.63,177.62,8.79e-05]
[1730165520229,25.6296,177.63,177.62,8.79e-05]
[1730165521320,36.60015772,177.63,177.62,8.79e-05]
[1730165525524,60.37704172,177.63,177.62,8.79e-05]
[1730165526028,25.6296,177.63,177.62,8.79e-05]
[1730165526229,41.4009812,177.63,177.62,8.79e-05]
[1730165526538,52.37153892,177.63,177.62,8.79e-05]
[1730165527345,36.60015772,177.63,177.62,8.79e-05]
[1730165528935,52.86880009,177.63,177.62,8.79e-05]
[1730165529341,36.60015772,177.63,177.62,8.79e-05]
[1730165532721,60.37704172,177.63,177.62,8.79e-05]
[1730165539349,36.60015772,177.63,177.62,8.79e-05]
[1730165543226,60.37704172,177.63,177.62,8.79e-05]
[1730165546550,10.97055772,177.55,177.52,3.79902265]
[1730165546734,80.97055772,177.55,177.53,3.79902265]
[1730165546934,80.97055772,177.55,177.54,3.79902265]
[1730165547448,86.60275772,177.55,177.54,3.79902265]
[1730165548647,75.6322,177.55,177.54,3.79902265]
[1730165549145,70.0,177.58,177.54,3.79902265]
[1730165549337,20.0,177.58,177.54,10.97055772]